bitfinex/quotes_SOLUSD_20251117
["timestamp","ask_amount","ask_price","bid_price","bid_amount"]
[1763381946274,8.36,142.0,141.98,4.84648967]
[1763381946459,8.36,142.0,141.99,4.17648967]
[1763381949668,8.36,142.0,141.99,4.89648967]
[1763381953260,104.4,142.02,141.99,4.89648967]
[1763381953464,8.36,142.01,142.0,0.72]
[1763381954206,9.78882769,142.05,142.0,0.72]
[1763381954364,8.36,142.04,142.0,0.72]
[1763381954563,8.36,142.04,142.03,4.17648967]
[1763381954972,8.36,142.04,142.03,4.89648967]
[1763381955893,8.36,142.07,142.03,16.11374537]
[1763381956079,8.36,142.07,142.06,4.17648967]
[1763381956578,8.36,142.07,142.06,4.89648967]
[1763381959986,8.36,142.07,142.06,4.17648967]
[1763381961092,8.36,142.07,142.06,4.89648967]
[1763381962174,8.36,142.07,142.06,4.17648967]
[1763381964591,18.14882769,142.07,142.06,4.17648967]
[1763381965885,18.14882769,142.07,142.06,4.84648967]
[1763381966090,8.36,142.07,142.06,4.84648967]
[1763381967986,0.2,142.08,142.06,11.88574722]
[1763381968297,0.2,142.08,142.07,0.67]
[1763381968507,0.2,142.08,142.07,4.84648967]
[1763381969503,0.2,142.08,142.07,27.49768967]
[1763381969816,0.2,142.08,142.07,34.53647336]
[1763381974885,0.2,142.08,142.07,27.49768967]
[1763381975409,0.2,142.08,142.07,34.53647336]
[1763381975914,0.2,142.08,142.07,27.49768967]
[1763381976212,0.2,142.08,142.07,34.53647336]
[1763381977514,0.2,142.08,142.07,4.84648967]
[1763381978913,0.2,142.08,142.07,3.33847205]
[1763381979091,0.2,142.08,142.07,2.66847205]
[1763381979513,0.2,142.08,142.07,3.33847205]
[1763381983092,0.86,142.08,142.07,2.66847205]
[1763381983291,18.98882769,142.08,142.07,2.66847205]
[1763381985410,18.32882769,142.08,142.07,2.66847205]
[1763381989312,8.54,142.08,142.07,2.66847205]
[1763381993534,9.2,142.08,142.07,2.66847205]
[1763381993698,9.78882769,142.07,142.05,2.66847205]
[1763381994018,11.32867565,142.07,142.05,2.66847205]
[1763381994201,10.66867565,142.07,142.05,2.66847205]
[1763381994405,10.44882769,142.06,142.05,2.66847205]
[1763381994598,9.78882769,142.06,142.05,2.66847205]
[1763381995715,18.12882769,142.06,142.05,2.66847205]
[1763382003718,18.12882769,142.06,142.05,3.33847205]
[1763382003927,18.12882769,142.06,142.05,2.66847205]
[1763382004812,8.34,142.06,142.05,2.66847205]
[1763382005137,18.12882769,142.06,142.05,2.66847205]
[1763382005827,0.2,142.08,142.06,22.6512]
[1763382006128,0.2,142.08,142.07,2.66847205]
[1763382006323,0.2,142.08,142.07,3.38847205]
[1763382007523,0.2,142.08,142.07,2.66847205]
[1763382007724,0.91,142.08,142.07,2.66847205]
[1763382007904,0.2,142.08,142.07,2.66847205]
[1763382008301,11.57861372,142.08,142.06,2.66847205]
[1763382008708,10.86861372,142.08,142.04,0.72]
[1763382008908,9.78882769,142.07,142.06,2.66847205]
[1763382010229,0.2,142.08,142.06,2.66847205]
[1763382010431,9.98882769,142.08,142.07,2.66847205]
[1763382010929,10.69882769,142.08,142.07,2.66847205]
[1763382012009,11.57861372,142.08,142.06,2.66847205]
[1763382012312,8.34,142.07,142.06,2.66847205]
[1763382015627,8.34,142.07,142.06,3.38847205]
[1763382016027,8.34,142.07,142.06,2.66847205]
[1763382016618,0.2,142.08,142.06,3.38847205]
[1763382016820,0.2,142.08,142.07,3.38847205]
[1763382018345,0.2,142.08,142.07,10.42725574]
[1763382019413,0.2,142.08,142.07,3.38847205]
[1763382019630,0.2,142.08,142.07,26.03967205]
[1763382019939,0.2,142.08,142.07,33.07845574]
[1763382020824,0.2,142.08,142.07,26.03967205]
[1763382021029,0.2,142.08,142.07,0.72]
[1763382021213,0.2,142.08,142.07,3.38847205]
[1763382021413,0.2,142.08,142.07,10.42725574]
[1763382027224,0.2,142.09,142.07,10.42725574]
[1763382027423,0.2,142.09,142.08,3.36847205]
[1763382028546,0.2,142.09,142.08,10.40676033]
[1763382030648,0.2,142.09,142.08,18.94676033]
[1763382033644,0.2,142.09,142.08,11.90847205]
[1763382033846,0.2,142.09,142.08,18.94676033]
[1763382034456,0.2,142.09,142.08,11.90847205]
[1763382034940,0.2,142.09,142.08,18.94676033]
[1763382038553,0.2,142.09,142.08,11.90847205]
[1763382038763,0.2,142.09,142.08,18.94676033]
[1763382040755,0.2,142.09,142.08,16.27828828]
[1763382040962,0.2,142.09,142.08,20.44646231]
[1763382041863,0.2,142.09,142.08,13.40817403]
[1763382043364,0.2,142.09,142.08,20.44646231]
[1763382043964,0.2,142.09,142.08,13.40817403]
[1763382044842,0.86,142.09,142.06,22.6512]
[1763382045045,0.86,142.09,142.08,4.16817403]
[1763382045265,0.2,142.09,142.08,4.16817403]
[1763382045454,10.44882769,142.08,142.06,4.16817403]
[1763382045651,8.34,142.07,142.06,4.16817403]
[1763382046570,8.54,142.09,142.06,11.8774532]
[1763382046862,8.54,142.09,142.08,4.16817403]
[1763382047470,9.2,142.09,142.08,4.16817403]
[1763382049957,19.2085518,142.09,142.08,4.16817403]
[1763382050137,9.78882769,142.08,142.07,4.16817403]
[1763382050342,10.44882769,142.08,142.07,4.16817403]
[1763382051169,11.32861372,142.08,142.06,4.16817403]
[1763382051348,11.32861372,142.08,142.04,10.44882769]
[1763382051349,0.66,142.07,142.04,4.16817403]
[1763382051545,9.78882769,142.05,142.04,4.16817403]
[1763382051957,10.44882769,142.05,142.04,4.16817403]
[1763382053349,10.44882769,142.05,142.01,0.67]
[1763382053546,10.44882769,142.05,142.04,4.16817403]
[1763382053751,9.78882769,142.05,142.04,4.16817403]
[1763382054654,10.44882769,142.05,142.04,4.16817403]
[1763382056270,9.78882769,142.05,142.04,4.16817403]
[1763382060973,10.44882769,142.05,142.04,4.16817403]
[1763382062462,9.78882769,142.05,142.04,4.16817403]
[1763382063075,8.34,142.06,142.04,4.83817403]
[1763382063381,0.86,142.09,142.05,4.83817403]
[1763382063681,9.98882769,142.09,142.08,4.16817403]
[1763382063880,18.98882769,142.09,142.08,4.16817403]
[1763382064881,18.98882769,142.09,142.07,4.16817403]
[1763382065086,9.78882769,142.07,142.03,0.67]
[1763382065428,9.78882769,142.05,142.01,21.16178182]
[1763382065560,9.78882769,142.03,142.02,4.16817403]
[1763382066182,9.78882769,142.05,142.02,4.83817403]
[1763382066383,18.12882769,142.05,142.04,4.16817403]
[1763382066680,8.34,142.05,142.04,4.16817403]
[1763382066989,8.34,142.05,142.04,4.83817403]
[1763382068488,8.34,142.05,142.04,4.16817403]
[1763382068678,8.34,142.05,142.04,4.83817403]
[1763382070195,18.12882769,142.07,142.04,4.83817403]
[1763382070417,18.12882769,142.07,142.06,4.16817403]
[1763382071281,8.34,142.07,142.06,4.83817403]
[1763382071680,8.34,142.07,142.06,4.16817403]
[1763382073113,8.34,142.07,142.06,4.83817403]
[1763382077307,8.34,142.07,142.06,11.8774532]
[1763382077498,8.54,142.09,142.06,11.8774532]
[1763382077811,8.54,142.09,142.08,4.16817403]
[1763382078211,8.54,142.09,142.08,4.88817403]
[1763382082104,0.2,142.09,142.08,4.88817403]
[1763382082418,8.54,142.09,142.08,4.88817403]
[1763382084819,8.54,142.09,142.08,4.16817403]
[1763382088723,8.54,142.09,142.08,4.88817403]
[1763382089913,8.54,142.09,142.08,4.16817403]
[1763382090110,8.54,142.09,142.08,4.88817403]
[1763382096029,8.54,142.09,142.08,4.16817403]
[1763382096234,8.54,142.09,142.08,4.88817403]
[1763382097644,8.54,142.09,142.04,22.6512]
[1763382097645,9.25,142.09,142.04,22.6512]
[1763382097946,11.37861372,142.08,142.06,4.16817403]
[1763382098104,18.27098926,142.07,142.04,4.16817403]
[1763382098306,9.78882769,142.05,142.03,4.16817403]
[1763382098530,19.00886148,142.04,142.03,4.16817403]
[1763382098916,9.78882769,142.03,142.02,4.16817403]
[1763382099107,9.78882769,142.03,141.96,4.16817403]
[1763382099108,10.49882769,142.03,141.96,4.16817403]
[1763382099308,9.93015772,142.02,142.0,4.16817403]
[1763382099839,0.71,142.01,142.0,4.16817403]
[1763382100813,0.71,142.01,142.0,2.67226283]
[1763382101936,9.78882769,142.0,141.99,2.67226283]
[1763382102234,18.12882769,142.0,141.99,2.67226283]
[1763382102436,18.83882769,142.0,141.99,2.67226283]
[1763382102738,18.83882769,142.0,141.95,0.69]
[1763382102911,1.59034368,141.99,141.98,2.67226283]
[1763382103112,0.88034368,141.99,141.98,2.67226283]
[1763382106647,1.59034368,141.99,141.98,2.67226283]
[1763382106832,9.93098926,141.98,141.93,0.1]
[1763382107149,9.78882769,141.96,141.94,2.67226283]
[1763382107438,19.00941944,141.95,141.94,2.67226283]
[1763382110014,18.12882769,141.95,141.94,2.67226283]
[1763382110214,9.78882769,142.0,141.94,10.40741065]
[1763382110427,0.88028169,142.0,141.99,2.67226283]
[1763382110622,19.00910938,142.0,141.99,2.67226283]
[1763382112836,19.71910938,142.0,141.99,2.67226283]
[1763382113148,19.00910938,142.0,141.99,2.67226283]
[1763382113356,19.71910938,142.0,141.99,2.67226283]
[1763382113947,19.00910938,142.0,141.99,2.67226283]
[1763382114160,19.86127095,142.0,141.98,2.67226283]
[1763382114319,0.71,141.99,141.98,2.67226283]
[1763382114718,19.86127095,142.0,141.98,2.67226283]
[1763382115117,19.71910938,142.0,141.98,2.67226283]
[1763382115319,19.15127095,142.0,141.99,2.67226283]
[1763382115838,19.86127095,142.0,141.99,2.67226283]
[1763382116147,19.86127095,142.0,141.98,2.67226283]
[1763382117125,19.15127095,142.0,141.98,2.67226283]
[1763382117349,0.71,141.99,141.98,2.67226283]
[1763382118152,19.15127095,142.0,141.98,2.67226283]
[1763382118346,19.86127095,142.0,141.99,2.67226283]
[1763382120749,10.66910938,142.0,141.99,2.67226283]
[1763382120961,18.12882769,142.01,141.99,3.36226283]
[1763382121124,8.34,142.01,142.0,3.36226283]
[1763382122728,8.34,142.01,142.0,2.67226283]
[1763382123328,18.12882769,142.01,142.0,2.67226283]
[1763382123850,18.12882769,142.01,142.0,3.36226283]
[1763382125758,9.78882769,142.01,142.0,3.36226283]
[1763382125958,18.12882769,142.01,142.0,3.36226283]
[1763382126257,18.83882769,142.01,142.0,2.67226283]
[1763382126753,18.12882769,142.01,142.0,2.67226283]
[1763382127828,8.34,142.01,142.0,3.36226283]
[1763382128952,8.34,142.01,142.0,0.69]
[1763382129261,8.34,142.01,142.0,3.36226283]
[1763382130756,2.67226283,142.07,142.0,3.36226283]
[1763382130757,0.7,142.08,142.0,10.40421162]
[1763382130955,19.00867565,142.07,142.05,2.67226283]
[1763382131148,9.93098926,142.06,142.03,2.67226283]
[1763382131343,9.78882769,142.04,142.03,2.67226283]
[1763382131774,8.34,142.05,142.03,2.67226283]
[1763382132073,18.12882769,142.05,142.04,2.67226283]
[1763382133481,8.34,142.05,142.04,3.36226283]
[1763382135164,8.34,142.05,142.04,10.40253317]
[1763382135372,8.34,142.05,142.04,3.36226283]
[1763382137769,8.34,142.05,142.04,10.40253317]
[1763382138266,8.34,142.07,142.04,10.40253317]
[1763382138467,8.34,142.07,142.06,2.67226283]
[1763382138646,8.34,142.07,142.06,3.36226283]
[1763382140948,8.34,142.07,142.06,2.67226283]
[1763382141661,8.34,142.07,142.06,3.39226283]
[1763382142075,8.34,142.07,142.06,2.67226283]
[1763382142991,0.2,142.09,142.07,7.03878369]
[1763382143178,0.2,142.09,142.08,2.67226283]
[1763382143376,0.2,142.09,142.08,3.39226283]
[1763382148616,0.2,142.09,142.01,17.60328844]
[1763382148892,0.14216157,142.08,142.06,2.67226283]
[1763382149052,9.21984796,142.07,142.06,2.67226283]
[1763382149256,19.65867565,142.07,142.04,2.67226283]
[1763382149462,9.78882769,142.05,142.04,2.67226283]
[1763382150871,9.78882769,142.05,142.02,0.72]
[1763382151078,9.78882769,142.05,142.04,2.67226283]
[1763382151384,18.12882769,142.05,142.04,2.67226283]
[1763382151878,18.12882769,142.05,142.02,0.72]
[1763382152068,18.12882769,142.05,142.04,2.67226283]
[1763382155193,18.12882769,142.05,142.02,0.72]
[1763382155396,19.00879953,142.05,142.04,2.67226283]
[1763382155686,18.12882769,142.05,142.04,2.67226283]
[1763382156482,0.2,142.09,142.04,3.33226283]
[1763382156685,18.32882769,142.09,142.08,2.67226283]
[1763382157067,0.2,142.09,142.08,3.33226283]
[1763382159894,0.2,142.09,142.08,14.02131415]
[1763382160873,0.2,142.09,142.08,8.99520666]
[1763382162085,0.2,142.09,142.08,4.82760333]
[1763382162889,8.54,142.11,142.08,16.03349494]
[1763382163192,8.54,142.11,142.1,8.33520666]
[1763382163585,8.54,142.11,142.1,8.99520666]
[1763382163896,8.54,142.11,142.1,8.33520666]
[1763382164597,8.54,142.11,142.1,4.16760333]
[1763382164890,8.54,142.11,142.1,8.33520666]
[1763382165596,8.54,142.11,142.1,6.90720666]
[1763382165795,8.54,142.11,142.1,7.56720666]
[1763382169013,8.54,142.11,142.1,4.82760333]
[1763382169688,18.32882769,142.11,142.1,4.82760333]
[1763382170190,18.32882769,142.11,142.1,8.99520666]
[1763382171893,18.32882769,142.11,142.1,4.82760333]
[1763382173983,18.32882769,142.11,142.1,4.16760333]
[1763382174412,18.32882769,142.11,142.1,4.82760333]
[1763382175488,9.78882769,142.1,142.08,0.66]
[1763382175683,8.54,142.11,142.09,4.82760333]
[1763382175901,8.54,142.11,142.1,4.16760333]
[1763382176209,8.54,142.11,142.1,4.82760333]
[1763382179912,18.32882769,142.11,142.1,4.82760333]
[1763382185916,8.54,142.11,142.1,4.82760333]
[1763382186315,8.54,142.11,142.1,16.03250433]
[1763382186505,8.54,142.11,142.1,8.99520666]
[1763382187911,8.54,142.11,142.1,4.16760333]
[1763382188112,9.24,142.11,142.07,7.03855329]
[1763382188315,18.32882769,142.11,142.07,7.73855329]
[1763382188516,18.32882769,142.11,142.1,4.16760333]
[1763382190102,19.02882769,142.11,142.1,4.16760333]
[1763382190922,9.78882769,142.1,142.05,7.73962241]
[1763382191101,9.78882769,142.1,142.08,4.16760333]
[1763382191102,18.12882769,142.09,142.08,4.16760333]
[1763382191302,18.82882769,142.09,142.08,4.16760333]
[1763382194910,18.12882769,142.09,142.08,4.16760333]
[1763382196024,18.82882769,142.09,142.08,4.16760333]
[1763382200407,18.12882769,142.09,142.08,4.16760333]
[1763382200803,18.12882769,142.09,142.08,4.86760333]
[1763382203331,18.12882769,142.09,142.08,4.16760333]
[1763382204038,18.12882769,142.09,142.08,4.86760333]
[1763382204237,0.2,142.11,142.08,11.90589161]
[1763382204413,8.34,142.1,142.09,0.7]
[1763382205832,8.34,142.1,142.09,4.86760333]
[1763382206506,9.2196622,142.1,142.09,4.16760333]
[1763382207446,8.34,142.1,142.09,4.86760333]
[1763382207949,8.34,142.1,142.09,4.16760333]
[1763382208128,9.2196622,142.1,142.09,4.16760333]
[1763382210728,9.2196622,142.1,142.08,4.86760333]
[1763382211024,8.34,142.1,142.08,4.86760333]
[1763382212041,10.6685518,142.09,142.08,4.16760333]
[1763382212430,9.78882769,142.08,142.07,4.16760333]
[1763382212742,18.12882769,142.08,142.06,4.16760333]
[1763382212916,18.12882769,142.08,142.06,4.86760333]
[1763382213116,18.12882769,142.08,142.06,0.7]
[1763382213421,18.12882769,142.08,142.06,4.86760333]
[1763382213851,0.34216157,142.11,142.07,4.86760333]
[1763382214147,9.2196622,142.1,142.08,4.16760333]
[1763382214437,8.34,142.1,142.09,4.16760333]
[1763382214632,18.12882769,142.1,142.09,4.16760333]
[1763382214810,8.34,142.1,142.09,4.86760333]
[1763382217630,8.34,142.1,142.09,0.7]
[1763382217849,8.34,142.1,142.09,4.86760333]
[1763382218347,8.34,142.1,142.09,4.16760333]
[1763382218726,9.2196622,142.1,142.07,0.72]
[1763382219048,9.2196622,142.1,142.08,4.88760333]
[1763382219738,8.34,142.1,142.09,4.16760333]
[1763382222933,8.34,142.1,142.09,2.66842854]
[1763382223114,8.34,142.1,142.09,3.38842854]
[1763382223315,8.54,142.11,142.09,0.72]
[1763382223721,8.54,142.11,142.1,2.66842854]
[1763382224234,8.54,142.11,142.09,3.38842854]
[1763382225127,8.54,142.11,142.06,7.03905842]
[1763382225334,0.8796622,142.1,142.08,3.38842854]
[1763382225640,8.34,142.09,142.08,2.66842854]
[1763382225815,8.34,142.09,142.08,3.38842854]
[1763382231228,8.34,142.09,142.08,2.66842854]
[1763382231939,9.78882769,142.08,142.06,2.66842854]
[1763382232142,8.34,142.07,142.06,2.66842854]
[1763382232347,8.34,142.07,142.04,3.38842854]
[1763382232852,8.34,142.07,142.05,3.38842854]
[1763382233532,9.78882769,142.06,142.04,2.66842854]
[1763382233734,8.34,142.05,142.03,3.38842854]
[1763382233940,9.21997184,142.05,142.03,3.38842854]
[1763382234833,8.34,142.05,142.03,3.38842854]
[1763382235436,8.34,142.05,142.03,0.72]
[1763382235634,8.34,142.05,142.03,3.38842854]
[1763382236952,0.87990989,142.06,142.04,0.72]
[1763382237147,8.34,142.05,142.04,0.72]
[1763382237347,8.34,142.07,142.04,10.42861618]
[1763382237539,8.34,142.07,142.05,0.72]
[1763382240339,8.34,142.07,142.05,10.42802616]
[1763382240838,0.2,142.11,142.06,3.38842854]
[1763382240839,9.98882769,142.11,142.06,3.38842854]
[1763382241160,9.2196622,142.1,142.07,2.66842854]
[1763382241345,9.2196622,142.1,142.08,0.72]
[1763382243861,9.2196622,142.1,142.07,3.38842854]
[1763382244155,10.45882769,142.09,142.05,0.72]
[1763382244360,9.78882769,142.07,142.05,0.72]
[1763382244546,8.34,142.06,142.05,0.72]
[1763382246255,8.34,142.06,142.03,3.37842854]
[1763382246443,9.86990989,142.06,142.03,3.37842854]
[1763382246643,9.86990989,142.06,142.03,0.71]
[1763382246853,9.21990989,142.06,142.03,3.37842854]
[1763382247435,9.21990989,142.06,142.02,29.69239539]
[1763382247436,9.21990989,142.06,142.04,0.71]
[1763382247864,8.34,142.06,142.04,3.37842854]
[1763382248046,104.4,142.08,142.05,0.71]
[1763382248359,18.12882769,142.07,142.05,0.71]
[1763382248854,18.12882769,142.07,142.05,3.37842854]
[1763382249062,8.34,142.07,142.05,3.37842854]
[1763382249263,8.34,142.07,142.06,3.37842854]
[1763382251844,8.34,142.07,142.06,0.71]
[1763382253649,8.34,142.07,142.06,3.37842854]
[1763382253855,8.34,142.07,142.06,0.71]
[1763382254645,0.2,142.11,142.06,33.06888425]
[1763382254852,18.32882769,142.11,142.08,2.66842854]
[1763382255357,18.32882769,142.11,142.09,0.71]
[1763382256755,18.32882769,142.11,142.09,3.37842854]
[1763382259359,18.32882769,142.11,142.09,0.71]
[1763382260053,18.99882769,142.11,142.07,0.68]
[1763382260361,18.99882769,142.11,142.08,0.68]
[1763382262463,18.32882769,142.11,142.08,0.68]
[1763382263269,18.99882769,142.11,142.08,3.34842854]
[1763382264164,18.32882769,142.11,142.08,3.34842854]
[1763382264348,18.32882769,142.11,142.08,0.68]
[1763382264549,1.5496622,142.1,142.07,0.68]
[1763382264860,0.8796622,142.1,142.08,0.68]
[1763382266469,8.34,142.09,142.08,0.68]
[1763382267672,9.2196622,142.1,142.08,3.34842854]
[1763382267874,9.2196622,142.1,142.04,52.14701255]
[1763382268090,9.98882769,142.11,142.09,2.66842854]
[1763382268367,9.98882769,142.11,142.1,2.66842854]
[1763382268368,0.2,142.11,142.1,2.66842854]
[1763382268766,0.2,142.11,142.1,3.34842854]
[1763382268969,0.2,142.11,142.1,10.38572621]
[1763382269557,0.2,142.11,142.1,3.34842854]
[1763382270474,18.32882769,142.11,142.08,8.34]
[1763382270775,18.32882769,142.11,142.09,2.66842854]
[1763382270973,0.8796622,142.1,142.08,0.68]
[1763382271283,18.32882769,142.11,142.09,0.68]
[1763382271461,18.32882769,142.11,142.08,25.99962854]
[1763382272152,8.34,142.1,142.09,3.34842854]
[1763382273372,0.2,142.11,142.09,3.34842854]
[1763382273573,0.2,142.11,142.1,3.34842854]
[1763382280170,0.2,142.11,142.1,0.68]
[1763382280401,0.2,142.11,142.1,3.34842854]
[1763382282893,0.2,142.11,142.1,4.84796356]
[1763382283388,0.2,142.11,142.1,11.88526123]
[1763382283695,0.2,142.11,142.1,22.55356545]
[1763382284395,0.2,142.11,142.1,4.84796356]
[1763382285988,0.2,142.11,142.1,4.16796356]
[1763382287195,0.2,142.11,142.1,4.88796356]
[1763382289598,0.2,142.11,142.09,8.54]
[1763382289913,8.34,142.1,142.07,31.1912]
[1763382290194,8.34,142.1,142.09,4.16796356]
[1763382290612,8.34,142.1,142.09,4.88796356]
[1763382295412,0.2,142.11,142.09,4.88796356]
[1763382295601,0.2,142.11,142.1,4.88796356]
[1763382296077,0.2,142.11,142.1,4.16796356]
[1763382296282,8.54,142.11,142.1,4.16796356]
[1763382296801,0.2,142.11,142.1,4.16796356]
[1763382297298,10.1096003,142.11,142.08,10.86842799]
[1763382297596,19.20842799,142.11,142.1,4.16796356]
[1763382297800,0.2,142.11,142.1,4.16796356]
[1763382297981,0.2,142.11,142.1,4.88796356]
[1763382298184,0.2,142.11,142.1,14.67679125]
[1763382299888,0.2,142.11,142.1,4.16796356]
[1763382300684,9.98882769,142.11,142.1,4.16796356]
[1763382304506,0.2,142.11,142.1,4.88796356]
[1763382306998,0.2,142.11,142.1,11.92526123]
[1763382308392,0.2,142.11,142.1,33.07510789]
[1763382308797,0.2,142.11,142.1,11.92526123]
[1763382309017,0.2,142.11,142.02,0.72]
[1763382309018,9.78882769,142.08,142.02,0.72]
[1763382309200,9.78882769,142.06,142.02,4.88796356]
[1763382309393,8.34,142.05,142.03,4.16796356]
[1763382309594,8.34,142.05,142.03,4.88796356]
[1763382309914,8.34,142.05,142.04,4.16796356]
[1763382310211,0.87978603,142.08,142.04,11.92818257]
[1763382310399,0.87972411,142.09,142.07,4.16796356]
[1763382310613,8.34,142.08,142.07,4.16796356]
[1763382310917,1.55972411,142.09,142.07,4.16796356]
[1763382311115,8.34,142.08,142.07,4.88796356]
[1763382312819,8.34,142.08,142.07,4.16796356]
[1763382315496,9.78882769,142.07,142.04,4.16796356]
[1763382315712,9.21990989,142.06,142.04,4.16796356]
[1763382316226,9.21990989,142.06,142.04,4.88796356]
[1763382316527,9.89990989,142.06,142.04,4.16796356]
[1763382317128,9.78882769,142.05,142.03,4.16796356]
[1763382317310,9.22003379,142.04,142.02,4.16796356]
[1763382317628,9.22003379,142.04,142.02,4.88796356]
[1763382319426,9.22003379,142.04,142.03,4.16796356]
[1763382321212,9.22003379,142.04,142.02,4.88796356]
[1763382323331,9.22003379,142.04,142.03,4.16796356]
[1763382323832,9.22003379,142.04,142.02,4.16796356]
[1763382324038,9.22003379,142.04,142.02,4.84796356]
[1763382325034,9.78882769,142.02,142.01,4.16796356]
[1763382325218,19.00898541,142.02,142.0,4.16796356]
[1763382325421,19.00898541,142.02,142.0,4.84796356]
[1763382326131,18.12882769,142.02,142.0,4.84796356]
[1763382327846,18.12882769,142.02,142.01,4.16796356]
[1763382328336,8.34,142.02,142.01,4.84796356]
[1763382328911,8.34,142.05,142.01,4.84796356]
[1763382329114,8.34,142.05,142.04,4.16796356]
[1763382329536,8.34,142.05,142.04,4.84796356]
[1763382333442,8.34,142.05,142.04,4.16796356]
[1763382333625,9.02,142.05,142.04,4.16796356]
[1763382334125,8.34,142.05,142.04,4.16796356]
[1763382334442,18.12882769,142.05,142.04,4.16796356]
[1763382337547,8.34,142.05,142.04,4.86796356]
[1763382344954,8.34,142.05,142.04,3.36979907]
[1763382345349,8.34,142.05,142.04,10.41006941]
[1763382345551,104.4,142.07,142.04,10.41006941]
[1763382345860,8.34,142.07,142.06,2.66979907]
[1763382346355,8.34,142.07,142.06,3.36979907]
[1763382347461,8.34,142.07,142.06,0.7]
[1763382347839,8.34,142.07,142.06,3.36979907]
[1763382348359,9.01,142.07,142.04,0.7]
[1763382348548,8.34,142.07,142.06,2.66979907]
[1763382348956,8.34,142.07,142.06,3.36979907]
[1763382349857,8.34,142.07,142.06,2.66979907]
[1763382350046,8.34,142.07,142.06,3.36979907]
[1763382358384,0.8796622,142.1,142.06,10.40907824]
[1763382358582,9.98882769,142.11,142.09,2.66979907]
[1763382358772,0.2,142.11,142.1,3.36979907]
[1763382360478,0.2,142.11,142.1,3.36979907]
[1763382360782,11.53842799,142.11,142.1,2.66979907]
[1763382361084,0.2,142.11,142.1,3.36979907]
[1763382361279,0.2,142.11,142.1,2.66979907]
[1763382361874,0.2,142.11,142.1,3.36979907]
[1763382362057,0.2,142.11,142.1,2.66979907]
[1763382362594,0.2,142.11,142.1,21.08629302]
[1763382370093,0.2,142.12,142.11,2.66979907]
[1763382370276,0.2,142.12,142.11,3.34979907]
[1763382370468,8.34,142.15,142.11,3.34979907]
[1763382370674,8.34,142.17,142.14,2.66979907]
[1763382370872,9.0,142.17,142.16,2.66979907]
[1763382371394,18.78882769,142.17,142.16,2.66979907]
[1763382376904,18.78882769,142.17,142.13,23.3312]
[1763382377102,18.78882769,142.17,142.16,2.66979907]
[1763382379099,9.78882769,142.17,142.16,2.66979907]
[1763382379302,18.12882769,142.17,142.16,3.35979907]
[1763382379903,18.12882769,142.17,142.16,2.66979907]
[1763382380912,8.34,142.17,142.16,3.35979907]
[1763382383505,0.2,142.18,142.16,3.35979907]
[1763382383697,0.2,142.18,142.17,2.66979907]
[1763382386007,0.2,142.18,142.17,3.35979907]
[1763382386508,0.2,142.18,142.17,2.66979907]
[1763382390113,0.2,142.18,142.17,3.35979907]
[1763382390301,0.2,142.18,142.17,2.66979907]
[1763382391597,0.2,142.18,142.17,3.35979907]
[1763382394030,0.2,142.18,142.17,2.66979907]
[1763382402105,10.65882769,142.18,142.13,23.3212]
[1763382402331,18.98805678,142.17,142.16,2.66979907]
[1763382402637,19.65805678,142.17,142.16,2.66979907]
[1763382404900,19.65805678,142.17,142.16,4.16495894]
[1763382405104,9.78882769,142.16,142.15,4.16495894]
[1763382405325,10.45882769,142.16,142.15,4.16495894]
[1763382405530,10.45882769,142.16,142.12,20.32805678]
[1763382405716,19.65818048,142.15,142.14,4.16495894]
[1763382406318,18.98818048,142.15,142.14,4.16495894]
[1763382409912,9.78882769,142.14,142.11,50.83630179]
[1763382410112,9.78882769,142.14,142.13,4.16495894]
[1763382410543,9.78882769,142.14,142.13,4.83495894]
[1763382410921,9.78882769,142.14,142.13,4.16495894]
[1763382412139,9.78882769,142.14,142.13,4.83495894]
[1763382412433,9.78882769,142.14,142.13,4.16495894]
[1763382413540,9.78882769,142.14,142.13,4.83495894]
[1763382414919,9.78882769,142.14,142.13,4.16495894]